bitfinex-derivatives/quotes_BNBF0:USTF0_20250302
["timestamp","ask_amount","ask_price","bid_price","bid_amount"]
[1740932941486,0.28309073,622.85,621.52,1.166]
[1740932941685,0.28309073,622.84,621.52,1.166]
[1740932941986,0.28309073,622.83,621.52,1.166]
[1740932942181,0.28309073,622.85,621.53,0.29543344]
[1740932943284,0.28309073,622.85,621.52,1.166]
[1740932945085,1.67873323,622.84,621.52,1.166]
[1740932945687,0.28255931,622.83,621.53,0.29533137]
[1740932946186,1.67873323,622.84,621.54,0.29530081]
[1740932946487,1.67873323,622.84,621.55,0.29530081]
[1740932946886,1.67873323,622.84,621.55,1.27530081]
[1740932947087,1.67873323,622.84,621.56,0.29530081]
[1740932947688,1.67873323,622.84,621.57,0.29533675]
[1740932947884,0.28256584,622.83,621.56,0.29533675]
[1740932948188,1.67873323,622.84,621.57,0.29533675]
[1740932948388,1.67873323,622.84,621.56,0.29533675]
[1740932948589,1.67873323,622.84,621.57,0.29533675]
[1740932948783,1.67873323,622.84,621.56,0.29533675]
[1740932948985,1.67873323,622.84,621.55,0.98]
[1740932949290,1.67873323,622.84,621.56,0.29533636]
[1740932949484,0.28258748,622.83,621.56,0.29533636]
[1740932949688,1.67873323,622.84,621.56,0.29533636]
[1740932949890,0.32109944,622.86,621.56,0.29533636]
[1740932951293,0.28258889,622.85,621.57,0.29531775]
[1740932951586,0.28258889,622.85,621.58,0.29531775]
[1740932951792,0.28258889,622.85,621.59,0.29531775]
[1740932951985,0.28258889,622.85,621.59,0.742]
[1740932952186,0.28258889,622.85,621.6,0.29531775]
[1740932953090,0.32109944,622.86,621.61,1.177]
[1740932953292,0.32109944,622.86,621.62,0.29531775]
[1740932953691,0.32109944,622.86,621.63,0.2952032]
[1740932953886,0.32109944,622.86,621.62,0.2952032]
[1740932954792,0.32109944,622.86,621.63,0.29519966]
[1740932954993,0.32109944,622.86,621.63,1.045]
[1740932955193,0.32109944,622.86,621.64,0.29519966]
[1740932956194,0.32109944,622.86,621.63,1.045]
[1740932956493,0.32109944,622.86,621.64,0.29523174]
[1740932962099,0.32109944,622.86,621.65,0.29523174]
[1740932962297,0.32109944,622.86,621.66,0.29523174]
[1740932962606,0.32109944,622.86,621.67,0.29523174]
[1740932962797,0.32109944,622.86,621.64,0.29523174]
[1740932963206,0.32109944,622.86,621.65,0.29523281]
[1740932963402,0.32109944,622.86,621.64,0.29523281]
[1740932963596,0.32109944,622.86,621.63,1.045]
[1740932963597,0.32109944,622.86,621.65,0.29523281]
[1740932963798,0.32109944,622.86,621.64,0.29523281]
[1740932964807,0.32109944,622.86,621.63,1.045]
[1740932966217,0.28256395,622.85,621.64,0.29533588]
[1740932966398,0.28256395,622.85,621.63,1.045]
[1740932966594,0.32109944,622.86,621.63,1.045]
[1740932967108,0.28260318,622.85,621.63,1.045]
[1740932967796,0.32111491,622.83,621.63,1.045]
[1740932968009,0.28260318,622.82,621.63,1.045]
[1740932969405,0.32111491,622.83,621.63,1.045]
[1740932969603,0.32111491,622.83,621.64,0.29534233]
[1740932970002,0.28260179,622.82,621.65,0.29537374]
[1740932970210,0.28260179,622.82,621.63,1.045]
[1740932970503,0.32111491,622.83,621.65,0.751]
[1740932970504,0.28267064,622.81,621.65,0.751]
[1740932970705,0.28267064,622.8,621.65,0.751]
[1740932970900,0.28267064,622.79,621.65,0.751]
[1740932971104,0.28267064,622.78,621.65,0.751]
[1740932971325,0.28267064,622.82,621.65,0.751]
[1740932971507,0.28267064,622.81,621.65,0.751]
[1740932971698,0.32113553,622.79,621.65,0.751]
[1740932972005,0.28267064,622.78,621.65,0.751]
[1740932972901,0.28267064,622.77,621.65,0.751]
[1740932973202,0.28267064,622.76,621.65,0.751]
[1740932973403,0.28267064,622.78,621.65,0.751]
[1740932973704,0.28267064,622.77,621.65,0.751]
[1740932973896,0.28267064,622.78,621.65,0.751]
[1740932974100,0.28267064,622.77,621.65,0.751]
[1740932974314,1.67863201,622.84,621.65,0.751]
[1740932974315,0.60382164,622.76,621.65,0.751]
[1740932974501,0.28267064,622.75,621.65,0.751]
[1740932975099,0.28267064,622.75,621.65,1.579]
[1740932976804,0.32116647,622.73,621.65,1.579]
[1740932977106,0.28267064,622.72,621.65,1.579]
[1740932978395,1.67904372,622.71,621.65,1.579]
[1740932978703,0.28267064,622.7,621.65,1.579]
[1740932979306,0.28267064,622.7,621.65,2.43]
[1740932979509,1.67904372,622.71,621.65,2.43]
[1740932979709,0.28274862,622.7,621.65,2.43]
[1740932980102,0.32119226,622.68,621.65,2.43]
[1740932980306,0.28274862,622.67,621.65,2.43]
[1740932983404,0.32120774,622.65,621.65,2.43]
[1740932983606,0.28274862,622.64,621.65,2.43]
[1740932983808,0.32120774,622.65,621.65,2.43]
[1740932985714,0.28265154,622.64,621.65,2.43]
[1740932991416,0.28272381,622.63,621.65,2.43]
[1740932991620,0.28272381,622.64,621.65,2.43]
[1740932991827,0.32120774,622.65,621.65,2.43]
[1740932992224,0.28263038,622.64,621.65,2.43]
[1740932992826,0.32120774,622.65,621.65,2.43]
[1740932993225,1.67749918,622.64,621.65,2.43]
[1740932993726,0.32120774,622.65,621.65,2.43]
[1740932994427,0.32120774,622.65,621.66,0.29529563]
[1740932994634,0.32120774,622.65,621.65,1.679]
[1740932994927,0.32120774,622.65,621.66,0.29523818]
[1740932997831,0.32120774,622.65,621.66,1.19723818]
[1740932998034,0.32120774,622.65,621.67,0.29523818]
[1740932998327,1.42941054,624.31,621.67,0.29523818]
[1740932998531,0.32042039,624.18,621.69,0.32170374]
[1740932998727,0.28236381,624.17,621.7,0.29523818]
[1740932998935,0.28236381,624.16,621.7,0.29523818]
[1740932999129,0.28236381,624.15,621.7,0.29523818]
[1740932999334,0.28236381,624.14,621.71,0.902]
[1740932999522,0.28236381,624.13,621.72,0.29523818]
[1740932999725,0.28236381,624.12,621.72,0.29523818]
[1740932999929,0.28236381,624.11,621.72,0.29523818]
[1740933000131,0.28236381,624.1,621.72,0.29523818]
[1740933000331,0.28236381,624.09,621.72,0.29523818]
[1740933000525,0.28236381,624.08,621.72,0.29523818]
[1740933000732,0.28236381,624.07,621.72,0.29523818]
[1740933000933,0.28236381,624.06,621.72,0.29523818]
[1740933001173,0.28236381,624.17,621.72,0.29523818]
[1740933001341,0.28236381,624.16,621.73,1.1671672]
[1740933001531,0.28236381,624.15,621.74,0.29523818]
[1740933001833,0.28236381,624.14,621.74,0.29523818]
[1740933002131,0.28236381,624.13,621.74,0.29523818]
[1740933002341,0.28236381,624.12,621.74,0.29523818]
[1740933002551,0.28236381,624.17,621.74,0.29523818]
[1740933002730,0.28236381,624.11,621.74,0.29523818]
[1740933002931,0.32042039,624.18,621.73,1.1671672]
[1740933003134,0.28243493,624.17,621.74,0.29520554]
[1740933003333,0.28243493,624.16,621.74,0.29520554]
[1740933003532,0.28243493,624.15,621.74,0.29520554]
[1740933003730,0.28243493,624.14,621.74,0.29520554]
[1740933003937,0.28243493,624.13,621.72,0.29520554]
[1740933004124,0.28243493,624.12,621.72,0.29520554]
[1740933004333,0.28243493,624.11,621.72,0.29520554]
[1740933004567,0.28243493,624.1,621.72,0.29520554]
[1740933004732,0.28243493,624.09,621.72,0.29520554]
[1740933005032,0.28243493,624.08,621.72,0.29520554]
[1740933005238,0.28243493,624.07,621.72,0.29520554]
[1740933005532,0.28243493,624.06,621.72,0.29520554]
[1740933005730,0.28243493,624.05,621.72,0.29520554]
[1740933005934,0.28243493,624.04,621.72,0.29520554]
[1740933006137,0.28247384,624.03,621.73,0.29524483]
[1740933006329,0.28247384,624.02,621.72,0.29524483]
[1740933006551,0.32042039,624.18,621.71,0.902]
[1740933006552,0.28247384,624.01,621.73,0.29524483]
[1740933006734,0.28247384,624.0,621.72,0.29524483]
[1740933006935,0.28247384,623.99,621.71,0.902]
[1740933007239,0.28247384,623.98,621.73,0.957]
[1740933007529,0.28247384,623.97,621.73,0.957]
[1740933007745,0.28247384,623.96,621.73,0.957]
[1740933008037,0.28247384,623.95,621.73,0.957]
[1740933008233,0.28247384,623.94,621.74,0.29522875]
[1740933008635,0.28247384,623.93,621.74,0.29522875]
[1740933009034,0.28247384,623.92,621.74,0.29522875]
[1740933009239,0.28247384,623.91,621.74,0.29522875]
[1740933009435,0.28247384,623.9,621.74,0.29522875]
[1740933009632,0.28247384,623.89,621.74,0.29522875]
[1740933009829,0.28247384,623.88,621.74,0.29522875]
[1740933010034,0.28247384,623.87,621.74,0.29522875]
[1740933010229,0.28247384,623.86,621.75,0.32167269]
[1740933010440,0.28247384,623.85,621.76,0.29522875]
[1740933010733,0.28247384,623.84,621.76,0.29522875]
[1740933010938,0.28247384,623.83,621.76,0.29522875]
[1740933011235,0.28247384,623.82,621.76,0.29522875]
[1740933011440,0.28247384,623.99,621.76,0.29522875]
[1740933011644,0.28247384,623.98,621.76,0.29522875]
[1740933012034,0.28247384,623.97,621.76,0.29522875]
[1740933012242,0.28247384,623.96,621.76,0.29522875]
[1740933012440,0.28247384,623.99,621.76,0.29522875]
[1740933012642,0.28247384,623.98,621.76,0.29522875]
[1740933012942,0.28247384,623.99,621.76,0.29522875]
[1740933013132,0.28247384,623.98,621.76,0.29522875]
[1740933013338,0.28247384,623.99,621.76,0.29522875]
[1740933016047,0.28247384,623.99,621.77,0.29522875]
[1740933016439,0.28247384,623.99,621.75,1.39067269]
[1740933016440,0.28247384,623.99,621.78,0.29522875]
[1740933016741,0.28247384,623.99,621.79,0.29522875]
[1740933016935,1.67758678,624.0,621.78,0.29522875]
[1740933017148,0.32042039,624.18,621.79,0.29522875]
[1740933017341,0.28194894,624.17,621.8,0.29522875]
[1740933017543,0.28194894,624.17,621.81,0.89679206]
[1740933017842,0.28194894,624.17,621.82,0.89679206]
[1740933018141,1.67592384,624.16,621.83,0.29522875]
[1740933018342,0.28194894,624.15,621.84,0.29522875]
[1740933018744,0.28194894,624.15,621.85,0.29522875]
[1740933018953,0.28194894,624.15,621.86,0.29522875]
[1740933019241,0.28194894,624.15,621.87,0.29522875]
[1740933019440,0.28194894,624.15,622.28,1.1671672]
[1740933019646,0.28194894,624.15,622.29,0.29522875]
[1740933020144,0.28194894,624.15,622.29,1.23222875]
[1740933020342,0.28194894,624.15,622.3,0.29522875]
[1740933021645,0.28194894,624.14,622.3,0.29522875]
[1740933021866,0.28194894,624.15,622.3,0.29522875]
[1740933022044,0.28194894,624.14,622.3,0.29522875]
[1740933022348,0.28194894,624.13,622.29,0.937]
[1740933022655,1.67592384,624.16,622.29,0.937]
[1740933022656,0.28194894,624.12,622.29,0.937]
[1740933022847,0.28194894,624.11,622.29,0.937]
[1740933023153,0.28194894,624.15,622.3,0.29500179]
[1740933023348,0.28194894,624.14,622.3,0.29500179]
[1740933023542,0.28194894,624.13,622.29,0.937]
[1740933023741,0.28194894,624.12,622.29,0.937]
[1740933023950,0.28194894,624.11,622.29,0.937]
[1740933024249,0.28194894,624.15,622.3,0.29499081]
[1740933024446,0.28194894,624.14,622.3,0.29499081]
[1740933024746,0.28194894,624.13,622.3,0.29499081]
[1740933024948,0.28194894,624.12,622.3,0.29499081]
[1740933025161,0.28194894,624.11,622.29,0.937]
[1740933025448,0.32046659,624.09,622.3,0.29505187]
[1740933025652,0.28194894,624.08,622.29,0.937]
[1740933026447,0.32046659,624.09,622.29,0.937]
[1740933026642,0.28224988,624.07,622.29,0.937]
[1740933026856,0.28224988,624.06,622.29,0.937]
[1740933027149,0.28224988,624.05,622.29,0.937]
[1740933027554,1.95893409,624.04,622.29,0.937]
[1740933027850,0.28224988,624.03,622.29,0.937]
[1740933028051,0.28224988,624.02,622.29,0.937]
[1740933028446,0.28224988,624.01,622.29,0.937]
[1740933028673,0.28224988,624.0,622.29,0.937]
[1740933028859,0.28224988,623.99,622.29,0.937]
[1740933029051,0.28224988,623.98,622.29,0.937]
[1740933029249,1.67668421,624.04,622.29,0.937]
[1740933029656,0.2824355,624.03,622.29,0.937]
[1740933029951,0.2824355,624.02,622.29,0.937]
[1740933030158,0.2824355,624.01,622.29,0.937]
[1740933030349,0.28237637,624.0,622.29,0.937]
[1740933030559,0.28237637,623.99,622.29,0.937]
[1740933030747,0.28237637,623.98,622.29,0.937]
[1740933030957,0.28237637,623.97,622.29,0.937]
[1740933031160,0.28237637,623.96,622.29,0.937]
[1740933031349,0.28237637,623.95,622.29,0.937]
[1740933031557,0.28237637,623.94,622.29,0.937]
[1740933031754,0.28237637,623.93,622.29,0.937]
[1740933032059,0.28237637,623.92,622.29,0.937]
[1740933032254,0.28237637,623.91,622.29,0.937]
[1740933032478,0.28237637,623.9,622.29,0.937]
[1740933032856,0.28237637,623.89,622.29,0.937]
[1740933033053,0.28237637,623.88,622.29,0.937]
[1740933033349,0.28237637,623.87,622.29,0.937]
[1740933033557,0.28237637,623.86,622.29,0.937]
[1740933033859,0.28259798,623.85,622.29,0.937]
[1740933034067,0.28259798,623.84,622.29,0.937]
[1740933034359,0.28259798,623.83,622.29,0.937]
[1740933034554,0.28259798,623.82,622.29,0.937]
[1740933034760,0.28259798,623.81,622.29,0.937]
[1740933034954,0.28259798,623.8,622.29,0.937]
[1740933035153,0.28259798,623.79,622.29,0.937]
[1740933035352,0.28259798,623.78,622.29,0.937]
[1740933035554,0.28255589,623.77,622.29,0.937]
[1740933036069,1.95941515,623.76,622.29,0.937]
[1740933036250,0.28255589,623.75,622.29,0.937]
[1740933036464,0.28255589,623.74,622.29,0.937]
[1740933036659,0.28255589,623.73,622.29,0.937]
[1740933036956,0.28255589,623.72,622.29,0.937]
[1740933037357,0.28255589,623.71,622.29,0.937]
[1740933037557,0.28255589,623.75,622.29,0.937]
[1740933037765,0.28255589,623.7,622.29,0.937]
[1740933037962,0.28255589,623.69,622.29,0.937]
[1740933038160,0.28255589,623.75,622.29,0.937]
[1740933038356,0.28255589,623.74,622.29,0.937]
[1740933038553,0.28255589,623.75,622.29,0.937]
[1740933038761,0.28255589,623.74,622.29,2.112]
[1740933038975,0.28255589,623.74,622.3,0.29502283]
[1740933039164,0.28222134,623.73,622.31,0.29499107]
[1740933039367,0.28222134,623.75,622.32,0.29499107]
[1740933039561,0.28222134,623.74,622.3,0.29499107]
[1740933039776,0.28222134,623.75,622.31,0.29499107]
[1740933039961,0.28222134,623.75,622.3,0.29499107]
[1740933040161,1.67685926,623.76,622.31,0.29499107]
[1740933040459,1.67685926,623.76,622.32,0.29499107]
[1740933040882,1.67685926,623.76,622.33,1.061]
[1740933041060,1.67685926,623.76,622.33,1.35590841]
[1740933041262,0.28212989,623.75,622.34,0.29490841]
[1740933041562,1.67685926,623.76,622.33,1.061]
[1740933041860,0.28223543,623.75,622.33,1.061]
[1740933042390,1.67685926,623.76,622.33,1.061]
[1740933042560,0.28227633,623.75,622.33,1.061]
[1740933043059,0.28226017,623.74,622.33,1.061]
[1740933043258,0.28226017,623.73,622.33,1.061]
[1740933043469,0.28226017,623.75,622.33,1.061]
[1740933043658,0.28226017,623.74,622.33,1.061]
[1740933043855,0.28226017,623.75,622.33,1.061]
[1740933044061,0.28229015,623.74,622.33,1.061]
[1740933044266,0.28229015,623.75,622.33,1.061]
[1740933044562,0.28229015,623.74,622.34,1.1150301]
[1740933044967,0.28229015,623.73,622.35,0.2950301]
[1740933045265,0.28229015,623.72,622.35,0.2950301]
[1740933045462,0.28229015,623.75,622.35,0.2950301]
[1740933045666,0.28229015,623.71,622.35,0.2950301]
[1740933045957,0.28229015,623.7,622.35,0.2950301]
[1740933046161,0.28229015,623.75,622.35,0.2950301]
[1740933046368,0.28229015,623.74,622.35,0.2950301]
[1740933046561,0.28229015,624.86,622.35,0.2950301]
[1740933046758,0.28229015,624.85,622.35,0.2950301]
[1740933046959,0.28229015,624.84,622.35,0.2950301]
[1740933047160,0.28229015,624.83,622.33,0.20030068]
[1740933047367,1.42941054,624.88,621.41,0.4479177]
[1740933047594,0.28417987,624.87,621.41,0.15096177]
[1740933047766,0.28417987,624.86,621.41,0.15096177]
[1740933047956,0.28417987,624.85,621.41,0.15096177]
[1740933048161,0.28417987,624.84,621.41,0.15096177]
[1740933048360,0.28417987,624.83,620.8,2.23551527]
[1740933048860,0.28417987,624.82,620.8,2.23551527]
[1740933049064,0.28417987,624.81,620.8,2.23551527]
[1740933049261,0.28417987,624.8,620.8,2.23551527]
[1740933049458,0.28417987,624.79,620.8,2.23551527]
[1740933049662,0.28417987,624.78,620.8,2.23551527]
[1740933049865,0.28417987,624.77,620.8,2.23551527]
[1740933050060,0.28417987,624.76,620.8,2.23551527]
[1740933050364,0.28417987,624.76,619.76,0.871]
[1740933050365,2.43198321,621.43,619.76,0.871]
[1740933050576,0.28417987,621.42,619.76,0.871]
[1740933050861,0.28417987,621.41,619.76,0.871]
[1740933051074,0.28417987,621.4,619.76,0.871]
[1740933051260,0.28417987,621.39,619.76,0.871]
[1740933051456,0.28417987,621.38,619.76,0.871]
[1740933051658,0.28417987,621.37,619.76,0.871]
[1740933051858,0.28417987,621.36,619.76,0.871]
[1740933052065,0.28417987,621.35,619.76,0.871]
[1740933052358,0.2701395,621.34,619.76,0.871]
[1740933052565,0.2701395,621.33,619.76,0.871]
[1740933052763,0.2701395,621.32,619.76,0.871]
[1740933052966,0.2701395,621.31,619.76,0.871]
[1740933053158,0.2701395,621.3,619.76,0.871]
[1740933053362,0.2701395,621.29,619.76,0.871]
[1740933053559,0.27011009,621.28,619.76,0.871]
[1740933053762,0.27011009,621.27,619.76,0.871]
[1740933053972,1.3578221,623.47,619.76,0.871]
[1740933054169,0.27011744,623.46,619.76,0.871]
[1740933054465,0.27011744,623.45,619.76,0.871]
[1740933054666,0.27011744,623.44,619.76,0.871]
[1740933054869,0.27011744,623.43,619.76,0.871]
[1740933055167,0.27011744,623.42,619.76,0.871]
[1740933055370,0.27011744,623.41,619.76,0.871]
[1740933055769,0.27011744,623.4,619.76,0.871]
[1740933055968,0.27011744,623.39,619.76,0.871]
[1740933056269,0.27011744,623.38,619.76,0.871]
[1740933056462,0.27011744,623.37,619.76,0.871]
[1740933056664,0.27011744,623.36,619.76,0.871]
[1740933056864,0.27011744,623.35,619.76,0.871]
[1740933057066,0.27011744,623.34,619.76,0.871]
[1740933057266,1.68345011,623.35,619.76,0.871]
[1740933057571,0.27021945,623.34,619.76,0.871]
[1740933057770,0.27021945,623.33,619.76,0.871]
[1740933057967,1.68345011,623.35,619.76,0.871]
[1740933057968,0.27021945,623.32,619.76,0.871]
[1740933058269,0.27021945,623.31,619.76,0.871]
[1740933058470,0.27021945,623.3,619.76,0.871]
[1740933058670,0.27021945,623.29,619.76,0.871]
[1740933059072,0.27021945,623.28,619.76,0.871]
[1740933059373,0.27021945,623.27,619.76,0.871]
[1740933059575,0.27021945,623.26,619.76,0.871]
[1740933059771,0.27021945,623.25,619.76,0.871]
[1740933059968,0.27021945,623.24,619.76,0.871]
[1740933060169,0.27021945,623.23,619.76,0.871]
[1740933060375,0.27021945,623.22,619.76,0.871]
[1740933060596,0.27002844,623.21,619.76,0.871]
[1740933060769,0.27002844,623.2,619.76,0.871]
[1740933060969,0.27002844,623.19,619.76,0.871]
[1740933061201,0.27002844,623.18,619.76,0.871]
[1740933061382,0.27002844,623.17,619.76,0.871]
[1740933061674,0.27002844,623.16,619.76,0.871]
[1740933061873,0.27002844,623.15,619.76,0.871]
[1740933062077,0.27002844,623.14,619.76,0.871]
[1740933062395,0.27002844,623.13,619.76,0.871]
[1740933062581,0.27002844,623.12,619.76,0.871]
[1740933062875,0.27002844,623.11,619.76,0.871]
[1740933063097,0.27002844,623.1,619.76,0.871]
[1740933063273,0.27002844,623.09,619.76,0.871]
[1740933063574,0.27002844,623.08,619.76,0.871]
[1740933063873,0.27002844,623.07,619.76,0.871]
[1740933064074,0.27002844,623.06,619.76,0.871]
[1740933064270,0.27002844,623.05,619.76,0.871]
[1740933064470,0.27002844,623.04,619.76,0.871]
[1740933064675,0.27002844,623.03,619.76,0.871]
[1740933064869,1.68316512,623.11,619.76,0.871]
[1740933064870,0.27002844,623.02,619.76,0.871]
[1740933065274,0.27002844,623.01,619.76,0.871]
[1740933065473,0.27002844,623.0,619.76,0.871]
[1740933065685,0.32108913,622.88,620.01,1.205]
[1740933065873,0.27002844,622.87,620.01,1.205]
[1740933066074,0.27002844,622.86,620.01,1.205]
[1740933066275,0.27002844,622.85,620.01,1.205]
[1740933066476,0.27002844,622.84,620.01,1.205]
[1740933066677,0.32108913,622.88,620.01,1.205]
[1740933066977,0.26995558,622.87,620.01,1.205]
[1740933067181,0.26995558,622.86,620.01,1.205]
[1740933067376,0.26995558,622.85,620.01,1.205]
[1740933067573,0.26995558,622.84,620.01,1.205]
[1740933067781,0.26995558,622.83,620.01,1.205]
[1740933067977,0.26995558,622.82,620.01,1.205]
[1740933068177,0.26995558,622.81,620.01,1.205]
[1740933068374,0.26995558,622.8,620.01,1.205]
[1740933068571,0.26995558,622.79,620.01,1.205]
[1740933068771,0.26995558,622.78,620.01,1.205]
[1740933068974,0.26995558,622.77,620.01,1.205]
[1740933069171,0.26995558,622.76,620.01,1.205]
[1740933069375,0.26995558,622.75,620.01,1.205]
[1740933069585,0.26995558,622.74,620.01,1.205]
[1740933069773,0.32108913,622.88,620.01,1.205]
[1740933069774,0.26995558,622.73,620.01,1.205]
[1740933069971,0.26995558,622.72,620.01,1.205]
[1740933070184,0.26995558,622.71,620.01,1.205]
[1740933070384,0.26995558,622.7,620.01,1.205]
[1740933070580,0.26995558,622.69,620.01,1.205]
[1740933070877,0.26995558,622.68,620.01,1.205]
[1740933071171,0.26995558,622.67,620.01,1.205]
[1740933071376,0.26995558,622.66,620.01,1.205]
[1740933071579,0.26989353,622.65,620.01,1.205]
[1740933071881,0.26989353,622.64,620.01,1.205]
[1740933072076,0.26989353,622.63,620.01,1.205]
[1740933072277,0.26989353,622.62,620.01,1.205]
[1740933072676,0.26989353,622.61,620.01,1.205]
[1740933072874,0.26989353,622.6,620.01,1.205]
[1740933073171,0.26989353,622.59,620.01,1.205]
[1740933073485,0.26989353,622.58,620.01,1.205]
[1740933073689,0.26989353,622.57,620.01,1.205]
[1740933073986,0.32108913,622.88,620.01,1.205]
[1740933073987,0.26989353,622.56,620.01,1.205]
[1740933074177,0.26989353,622.55,620.01,1.205]
[1740933074479,0.26989353,622.54,620.01,1.205]
[1740933074777,0.26989353,622.53,620.01,1.205]
[1740933074980,0.26989353,622.52,620.01,1.205]
[1740933075277,0.26992343,622.51,620.01,1.205]
[1740933075472,0.26992343,622.5,620.01,1.205]
[1740933075678,0.26992343,622.49,620.01,1.205]
[1740933075882,0.26992228,622.48,620.01,1.205]
[1740933076078,0.32130578,622.46,620.01,1.205]
[1740933076276,0.26992228,622.45,620.01,1.205]
[1740933076580,0.26992228,622.44,620.01,1.205]
[1740933076877,0.26992228,622.43,620.01,1.205]
[1740933077077,0.26992228,622.42,620.01,1.205]
[1740933077280,0.26992228,622.41,620.01,1.205]
[1740933077478,0.26992228,622.4,620.01,1.205]
[1740933077777,0.26992228,622.39,620.01,1.205]
[1740933077975,0.26992228,622.38,620.01,1.205]
[1740933078175,0.26992228,622.37,620.01,1.205]
[1740933078476,0.26992228,622.36,620.01,1.205]
[1740933078682,0.26992228,622.35,620.01,1.205]
[1740933078883,0.26992228,622.34,620.01,1.205]
[1740933079074,0.26992228,622.33,620.01,1.205]
[1740933079277,0.26992228,622.32,620.01,1.205]
[1740933079474,0.26992228,622.31,620.01,1.205]
[1740933079680,0.26992228,622.3,620.01,1.205]
[1740933079880,0.26992228,622.29,620.16,1.095]
[1740933080081,0.26992228,622.28,620.16,1.095]
[1740933080479,0.26992228,622.27,620.16,1.095]
[1740933080682,0.26992228,622.26,620.16,1.095]
[1740933081069,0.26992228,622.25,620.16,1.095]
[1740933081212,0.26992228,622.24,620.16,1.095]
[1740933081480,0.26992228,622.23,620.16,1.095]
[1740933081702,0.26992228,622.22,620.16,1.095]
[1740933081888,0.26992228,622.21,620.16,1.095]
[1740933082183,0.26991729,622.2,620.16,1.095]
[1740933082379,0.32145038,622.18,620.16,1.095]
[1740933082584,0.26991729,622.17,620.16,1.095]
[1740933082886,0.26991729,622.16,620.16,1.095]
[1740933083081,0.26991729,622.15,620.16,1.095]
[1740933083276,0.26991729,622.14,620.16,1.095]
[1740933083587,0.26991729,622.13,620.16,1.095]
[1740933083787,0.32145038,622.18,620.16,1.095]
[1740933083987,0.26990295,622.17,620.16,1.095]
[1740933084281,0.26990295,622.16,620.16,1.095]
[1740933084482,0.26990295,622.15,620.16,1.095]
[1740933084682,0.26990295,622.14,620.16,1.095]
[1740933084879,0.26990295,622.13,620.16,1.095]
[1740933085086,0.26990295,622.12,620.16,1.095]
[1740933085285,0.26990295,622.11,620.16,1.095]
[1740933085485,0.32149688,622.09,620.16,1.095]
[1740933085682,0.26987552,622.08,620.16,1.095]
[1740933085886,0.26987552,622.07,620.16,1.095]
[1740933086083,0.26987552,622.06,620.16,1.095]
[1740933086386,0.26987552,622.05,620.16,1.095]
[1740933086578,0.26987552,622.04,620.16,1.095]
[1740933086788,0.26987552,622.03,620.16,1.095]
[1740933087101,0.32149688,622.09,620.16,1.095]
[1740933087281,0.26986872,622.08,620.16,1.095]
[1740933087494,0.26986872,622.07,620.16,1.095]
[1740933087788,0.26986872,622.06,620.26,0.913]
[1740933087977,0.32152273,622.04,620.26,0.913]
[1740933088180,0.26986872,622.03,620.26,0.913]
[1740933088492,0.26986872,622.02,620.26,0.913]
[1740933088686,0.32152273,622.04,620.26,0.913]
[1740933088885,0.26964241,622.03,620.26,0.913]
[1740933089084,2.43198321,620.71,620.49,0.944]
[1740933089291,0.26964241,620.7,620.49,0.944]
[1740933089682,2.43198321,620.71,620.49,0.944]
[1740933089884,0.26965249,620.7,620.49,0.944]
[1740933090692,2.44181239,620.65,620.49,0.944]
[1740933091685,0.59168649,620.64,620.49,0.944]
[1740933091884,0.26945679,620.63,620.49,0.944]
[1740933092197,0.322248,620.64,620.49,0.944]
[1740933092386,0.26951342,620.63,620.49,0.944]
[1740933094191,0.32225838,620.62,620.49,0.944]
[1740933094383,0.26951342,620.61,620.49,0.944]
[1740933094789,0.32225838,620.62,620.49,0.944]
[1740933105797,2.44181239,623.44,620.49,0.944]
[1740933105996,0.32104274,622.97,620.49,0.944]
[1740933106201,0.26921307,622.96,620.49,0.944]
[1740933106397,0.26921307,622.95,620.49,0.944]
[1740933106593,0.32104274,622.97,620.49,0.944]
[1740933106594,0.32110459,622.85,620.49,0.944]
[1740933106895,0.26921307,622.84,620.49,0.944]
[1740933107095,0.26921307,622.83,620.49,0.944]